{"text_format":"1","workbook":"xlsx","n_sheets":3,"sheets":["Sheet1","Sheet2","Data"],"not_rendered":{"charts":0,"images":0,"macros":0,"external_links":0,"defined_names":0,"comments":0,"pivot_tables":0},"unopened":[],"bounds":{"document_bytes":16777216,"sheet_cells":100000,"rows_first":2000,"rows_last":500,"rows_between":2000,"halvings":0,"cell_chars":16384,"cell_head_chars":4096},"cells_cut":0,"cells_raw":0,"read":"whole","date_system":"1900"}

{"sheet":"Sheet1","index":0,"n_rows":69,"n_cols":7,"rows_kept":69,"cut":false,"hidden":false,"merged":[[52,0,52,1],[38,0,38,6],[34,0,34,1],[43,0,43,6],[62,0,62,6],[64,0,64,2],[64,3,64,5],[56,0,56,1],[56,4,56,5],[60,0,60,6],[61,0,61,6],[63,0,63,6],[59,0,59,6],[53,0,53,1],[58,0,58,6],[55,0,55,5],[44,0,44,1],[35,0,35,1],[36,0,36,1],[47,0,47,1],[49,0,49,1],[48,0,48,1],[42,0,42,1],[54,0,54,5],[57,0,57,5],[50,0,50,5],[51,0,51,6],[46,0,46,1],[45,0,45,1],[32,0,32,5],[33,0,33,6],[28,0,28,5],[29,0,29,6],[10,0,11,1],[14,0,14,1],[15,0,15,1],[16,0,16,1],[13,0,13,6],[68,5,68,6],[65,0,65,2],[65,3,65,6],[66,1,66,2],[67,1,67,2],[68,1,68,2],[66,3,66,4],[67,3,67,4],[68,3,68,4],[67,5,67,6],[66,5,66,6],[0,0,1,6],[2,2,2,6],[4,2,4,6],[5,2,5,6],[24,0,24,5],[12,0,12,6],[6,2,6,6],[9,2,9,6],[10,2,11,2],[10,3,11,3],[10,4,11,4],[18,0,18,1],[20,0,20,1],[2,0,2,1],[4,0,4,1],[5,0,5,1],[3,0,3,1],[37,0,37,5],[39,0,39,1],[40,0,40,1],[41,0,41,1],[31,0,31,1],[25,0,25,6],[26,0,26,1],[27,0,27,1],[30,0,30,1],[21,0,21,6],[10,5,11,5],[3,2,3,6],[6,0,6,1],[9,0,9,1],[7,0,7,1],[8,0,8,1],[22,0,22,1],[23,0,23,1],[8,2,8,6],[7,2,7,6],[17,0,17,6],[19,0,19,1]]}
["ESTIMATED BUDGET – GRANT AGREEMENT"]
[]
["Action:",null,"Fostering women's access to justice in Türkiye"]
["Proposed project name:","Proposed project:"," <specify>"]
["Place: ",null," <specify>"]
["Implementation period:",null," <specify>"]
["CoE Administrator responsible:",null,"Bilge Filiz, Project Manager"]
["Currency:",null,"Euro"]
["Grant by the Council of Europe:",null,"max. 15 000 Euros"]
["Contribution by the Grantee:",null," <¹specify>"]
["Expenditure",null,"Unit","# of units","Average unit rate        ","# of participants","Estimated"]
[null,null,null,null,null,null," budget"]
["1. Human Resources "]
["1.1. Staff"]
["1.1.1 specify",null,"Per xx",null,0,null,{"$f":"D15*E15*F15","v":0}]
["1.1.2 specify",null,"Per xx",null,0,null,{"$f":"D16*E16*F16","v":0}]
["1.1.3 specify",null,"Per xx",null,0,null,{"$f":"D17*E17*F17","v":0}]
["1.2. Experts/Consultants"]
["1.2.1 specify",null,"Per xx",null,0,null,{"$f":"D19*E19*F19","v":0}]
["1.2.2 specify",null,"Per xx",null,0,null,{"$f":"D20*E20*F20","v":0}]
["1.2.3 specify",null,"Per xx",null,0,null,0]
["1.3. Per diems (lunch, dinner, accommodation, transfer)"]
["1.2.1 International ",null,"Per diem",null,0,null,{"$f":"D23*E23*F23","v":0}]
["1.2.2 Local ",null,"Per diem",null,0,null,{"$f":"D24*E24*F24","v":0}]
["Subtotal 1 Human Resources ",null,null,null,null,null,{"$f":"SUM(G15:G24)","v":0}]
["2. Travel "]
["2.1 International travel ",null,"Per return flight ",null,0,null,{"$f":"D27*E27*F27","v":0}]
["2.2 Local transportation ",null,"Per trip",null,0,null,0]
["Subtotal 2 Travel ",null,null,null,null,null,{"$f":"SUM(G27:G28)","v":0}]
["3. Equipment and supplies "]
["3.1 specify",null,"Per xx",null,0,null,{"$f":"D31*E31*F31","v":0}]
["3.2 specify",null,"Per xx",null,0,null,{"$f":"D32*E32*F32","v":0}]
["Subtotal 3 Equipment and supplies",null,null,null,null,null,{"$f":"SUM(G31:G32)","v":0}]
["4. Office items "]
["4.1 Office supplies",null,"Per month ",null,0,null,{"$f":"D35*E35*F35","v":0}]
["4.2 Office furniture and equipment ",null,"Per item",null,0,null,0]
["4.3 Other services ",null,"Per month ",null,0,null,0]
["Subtotal 4 Office items ",null,null,null,null,null,{"$f":"SUM(G35:G37)","v":0}]
["5. Other expenditure and services "]
["5.1 Publications ",null,"Per item ",null,0,null,{"$f":"D40*E40*F40","v":0}]
["5.2 Studies, research ",null,"Per item ",null,0,null,{"$f":"D41*E41*F41","v":0}]
["5.3 Translation ",null,"Per 250 words",null,0,null,0]
["5.4 Interpretation ",null,"Per person/day",null,0,null,0]
["5.5. Conferences/seminars²"]
["5.5.1 Rent of hall ",null,"Per event ",null,0,null,0]
["5.5.2 Rent of interpretation equipment ",null,"Per event ",null,0,null,0]
["5.5.3 Coffee breaks",null,"Per event ",null,0,null,0]
["5.5.4 Local transportation ",null,"Per event ",null,0,null,0]
["5.5.5 Per diems for participants (lunch, dinner, accommodation, transfer)",null,"Per event ",null,0,null,0]
["5.5.6 Visibility actions",null,"Per item ",null,0,null,0]
["Subtotal 5 Other expenditure and services ",null,null,null,null,null,{"$f":"SUM(G40:G50)","v":0}]
["6. Other"]
["6.1 specify ",null,"Per xx",null,0,null,{"$f":"D53*E53*F53","v":0}]
["6.2 specify",null,"Per xx",null,0,null,{"$f":"D54*E54*F54","v":0}]
["Subtotal 6: other ",null,null,null,null,null,{"$f":"SUM(G53:G54)","v":0}]
["Subtotal direct eligible costs (1-6)",null,null,null,null,null,{"$f":"G55+G51+G38+G33+G29+G25","v":0}]
["Subtotal 7: indirect eligible costs 4",null,"In %",{"$f":"INDEX(Data!C4:C11,Data!H2)","v":0},null,null,{"$f":"G56*D57","v":0}]
["Total grant expenditure (1-7) 5",null,null,null,null,null,{"$f":"G57+G56","v":0}]
["Notes: "]
["¹ In accordance with the principle of co-financing, indicate whether the grantee commits to contribute by means of an \nin-kind contribution, or by means of a financial contribution. In the first case, the in-kind contribution shall be described, while in the second case, the amount and the currency of the financial contribution shall be indicated in the box. Contribution should not be included in the overall estimated budget."]
["2 See Articles 1.1 and 3.2."]
["3 Insert different lines to take into account differences of unit rates or number of participants in each event (lunch, journeys, etc). “Average unit rate” can be used but not “Average number of participants”. "]
["4  Indicate percentage (flatrate up to 7%) to be covered by indirect eligible costs (i.e. eligible costs, not referred to in the budget heads 1-6, incurred by the grantee in connection with the action or project concerned)."]
["5 Please ensure the total grant expenditure is equal or below the maximum amount of grant funds to be awarded."]
[]
["I certify that this is the budget proposed",null,null,"I accept the proposed budget"]
["Name of the representative of the Grantee (followed by capacity, e.g. Director)","(Name and capacity)",null,"Name of the representative of the Council of Europe ",null,"William Massolin,\nHead of Council of Europe Programme Office in Ankara"]
["Signature ",null,null,"Signature"]
["Date:",null,null,"Date:"]

{"sheet":"Sheet2","index":1,"n_rows":0,"n_cols":0,"rows_kept":0,"cut":false,"hidden":false,"merged":[]}

{"sheet":"Data","index":2,"n_rows":11,"n_cols":8,"rows_kept":11,"cut":false,"hidden":true,"merged":[]}
[null,null,null,null,null,null,"Data"]
[null,null,null,null,null,null,"Pourc1",1]
[]
[null,"Pourcentage",0]
[null,null,0.01]
[null,null,0.02]
[null,null,0.03]
[null,null,0.04]
[null,null,0.05]
[null,null,0.06]
[null,null,7.0000000000000007E-2]